bitfinex-derivatives/quotes_BTCF0:USTF0_20240815
["timestamp","ask_amount","ask_price","bid_price","bid_amount"]
[1723755935254,0.3778,56835.0,56834.0,0.002]
[1723755936158,0.017,56835.0,56834.0,0.002]
[1723755936754,0.060971,56835.0,56834.0,0.002]
[1723755937253,1.04056043,56835.0,56834.0,0.002]
[1723755937456,0.44726129,56835.0,56829.0,0.00026396]
[1723755937654,0.05208467,56834.0,56829.0,0.00026396]
[1723755938159,0.42988467,56835.0,56829.0,0.00026396]
[1723755938355,0.06946129,56831.0,56829.0,0.00026396]
[1723755938656,0.06946129,56831.0,56829.0,0.00126396]
[1723755939247,0.3728,56835.0,56829.0,0.00126396]
[1723755939248,0.3608,56830.0,56829.0,0.00126396]
[1723755939456,0.3608,56830.0,56829.0,0.00026396]
[1723755939758,0.3608,56830.0,56829.0,0.00126396]
[1723755940466,0.40374865,56830.0,56829.0,0.00126396]
[1723755940853,0.09231252,56830.0,56829.0,0.00126396]
[1723755941053,0.09231252,56830.0,56829.0,0.00054462]
[1723755941353,0.04310075,56830.0,56829.0,0.00054462]
[1723755942148,1.33178075,56830.0,56829.0,0.00054462]
[1723755942348,0.04310075,56830.0,56829.0,0.00054462]
[1723755942755,0.05010075,56830.0,56829.0,0.001]
[1723755942963,0.05010075,56830.0,56829.0,0.214976]
[1723755943662,0.012,56830.0,56829.0,0.214976]
[1723755944164,0.08193245,56830.0,56829.0,0.214976]
[1723755944659,0.012,56830.0,56829.0,0.214976]
[1723755946062,0.012,56830.0,56829.0,0.001]
[1723755946259,0.012,56830.0,56829.0,0.171]
[1723755946654,0.012,56830.0,56829.0,0.001]
[1723755948166,0.012,56830.0,56829.0,0.171]
[1723755948167,0.05013038,56830.0,56829.0,0.171]
[1723755948756,0.10489401,56833.0,56830.0,0.94986962]
[1723755948972,0.10489401,56833.0,56830.0,1.09986962]
[1723755949163,0.14299434,56832.0,56830.0,1.09986962]
[1723755949360,0.03810033,56831.0,56830.0,1.09986962]
[1723755949857,0.03810033,56831.0,56830.0,1.10086962]
[1723755950068,0.03810033,56831.0,56830.0,1.10186962]
[1723755950865,0.04410033,56831.0,56830.0,1.10186962]
[1723755952365,0.008,56833.0,56832.0,0.043974]
[1723755952555,0.05247091,56833.0,56832.0,0.5108]
[1723755952755,0.05663519,56837.0,56832.0,1.10880803]
[1723755952959,0.0874369,56841.0,56839.0,0.043968]
[1723755953155,0.043961,56849.0,56839.0,0.554768]
[1723755953156,0.0874369,56842.0,56839.0,0.554768]
[1723755953361,0.0874369,56843.0,56839.0,0.554768]
[1723755953863,0.0874369,56842.0,56839.0,0.5108]
[1723755954064,0.0874369,56842.0,56839.0,0.5118]
[1723755954265,0.0874369,56842.0,56839.0,0.3618]
[1723755954461,1.33283013,56840.0,56839.0,0.001]
[1723755954760,1.37024156,56840.0,56839.0,0.001]
[1723755955160,0.97024156,56840.0,56839.0,0.001]
[1723755955556,0.39847456,56840.0,56839.0,0.001]
[1723755955756,0.03767456,56840.0,56839.0,0.001]
[1723755955968,0.08772888,56840.0,56839.0,0.001]
[1723755956265,0.00026313,56840.0,56839.0,0.002]
[1723755957063,0.00026313,56840.0,56839.0,0.045968]
[1723755959066,0.00026313,56840.0,56839.0,0.002]
[1723755961358,0.00026313,56840.0,56830.0,0.95078962]
[1723755961359,1.28886313,56840.0,56830.0,0.95078962]
[1723755961557,0.44819752,56835.0,56830.0,0.94986962]
[1723755961757,0.08739752,56833.0,56830.0,0.94986962]
[1723755962158,0.08739752,56836.0,56833.0,0.043973]
[1723755962364,0.08739752,56838.0,56833.0,0.183973]
[1723755962564,0.36106313,56840.0,56833.0,0.183973]
[1723755962565,0.08739752,56839.0,56833.0,0.183973]
[1723755962963,0.45046065,56840.0,56837.0,0.04397]
[1723755963269,0.00226313,56840.0,56837.0,0.04397]
[1723755963465,0.00226313,56840.0,56833.0,0.3618]
[1723755963771,0.04397,56838.0,56833.0,0.3608]
[1723755963977,0.08313439,56850.0,56849.0,0.04396]
[1723755964168,0.3608,56858.0,56850.0,0.04396]
[1723755964467,0.3608,56858.0,56850.0,0.15]
[1723755964657,0.3608,56858.0,56850.0,0.20257461]
[1723755964856,0.3608,56858.0,56855.0,0.043956]
[1723755966072,0.3608,56858.0,56855.0,0.044956]
[1723755966568,0.00026396,56862.0,56860.0,0.043951]
[1723755966970,0.00026396,56862.0,56860.0,0.213951]
[1723755967767,0.36106396,56862.0,56857.0,0.36168]
[1723755968258,0.36106396,56862.0,56857.0,0.404754]
[1723755968569,0.36106396,56862.0,56859.0,0.043953]
[1723755968868,0.00026396,56862.0,56859.0,0.16]
[1723755969073,0.00026396,56862.0,56860.0,0.043952]
[1723755969267,0.00026396,56862.0,56860.0,0.203952]
[1723755970869,0.00026396,56862.0,56860.0,0.043952]
[1723755971068,0.00126396,56862.0,56860.0,0.043952]
[1723755971675,0.00026396,56862.0,56860.0,0.043952]
[1723755971871,0.00126396,56862.0,56860.0,0.043952]
[1723755972383,0.00126396,56862.0,56861.0,0.043951]
[1723755972668,0.00126396,56862.0,56861.0,0.213951]
[1723755973065,0.00126396,56862.0,56857.0,0.3608]
[1723755973280,0.00126396,56862.0,56857.0,0.554754]
[1723755973561,0.00126396,56862.0,56858.0,0.043953]
[1723755974160,0.00026396,56862.0,56858.0,0.213953]
[1723755974363,0.00126396,56862.0,56861.0,0.001]
[1723755975066,0.00126396,56862.0,56858.0,0.043953]
[1723755975270,0.00126396,56862.0,56858.0,0.203953]
[1723755975964,0.3608,56861.0,56858.0,0.203953]
[1723755976268,0.3608,56861.0,56859.0,0.043952]
[1723755976466,0.3608,56861.0,56859.0,0.203952]
[1723755977171,0.043952,56860.0,56859.0,0.16]
[1723755977366,0.5276,56860.0,56844.0,0.043964]
[1723755977575,0.3608,56855.0,56852.0,0.043958]
[1723755978070,0.3608,56855.0,56852.0,0.15]
[1723755978281,0.001,56860.0,56853.0,0.3608]
[1723755978570,0.001,56860.0,56853.0,0.5008]
[1723755979168,0.001,56860.0,56855.0,0.043956]
[1723755979369,0.001,56860.0,56856.0,0.043955]
[1723755979672,0.001,56860.0,56856.0,0.203955]
[1723755979872,0.001,56860.0,56857.0,0.043954]
[1723755980063,0.00026396,56862.0,56857.0,0.203954]
[1723755980778,0.00026396,56862.0,56858.0,0.043953]
[1723755981077,0.00026396,56862.0,56860.0,0.043952]
[1723755981273,0.00026396,56862.0,56860.0,0.213952]
[1723755981776,0.00126396,56862.0,56860.0,0.213952]
[1723755982874,0.00126396,56862.0,56861.0,0.043951]
[1723755983172,0.00126396,56862.0,56861.0,0.213951]
[1723755983375,0.00026396,56862.0,56861.0,0.213951]
[1723755983572,0.00126396,56862.0,56861.0,0.213951]
[1723755984279,0.00126396,56862.0,56861.0,1.503351]
[1723755984580,0.00126396,56862.0,56861.0,1.547302]
[1723755984775,9.6e-07,56862.0,56861.0,1.81246113]
[1723755984976,0.3608,56886.0,56861.0,1.81245367]
[1723755985184,0.3608,56895.0,56885.0,0.3608]
[1723755985480,0.46575681,56902.0,56885.0,0.5108]
[1723755985481,0.36232,56902.0,56885.0,0.5108]
[1723755985672,0.3608,56902.0,56899.0,0.043922]
[1723755985865,0.3608,56902.0,56892.0,0.3608]
[1723755986070,0.3608,56902.0,56896.0,0.043924]
[1723755986274,0.3608,56902.0,56892.0,0.41181358]
[1723755986494,0.3608,56902.0,56895.0,0.00026373]
[1723755986667,0.3608,56897.0,56895.0,0.00026373]
[1723755987180,0.3608,56897.0,56896.0,0.002]
[1723755988180,0.52728,56896.0,56879.0,0.3608]
[1723755988364,0.3608,56897.0,56890.0,0.043929]
[1723755989166,0.3608,56897.0,56885.0,0.3608]
[1723755989469,0.7216,56886.0,56873.0,0.3608]
[1723755989699,0.7216,56886.0,56874.0,0.00591357]
[1723755989700,0.3608,56881.0,56874.0,0.00591357]
[1723755989975,0.3608,56881.0,56877.0,0.00026373]
[1723755990275,1.28824,56881.0,56877.0,0.00026373]
[1723755990674,1.28824,56881.0,56880.0,0.00717252]
[1723755991080,0.3608,56881.0,56880.0,0.00717252]
[1723755991281,1.28924,56881.0,56880.0,0.00117252]
[1723755991667,0.001,56881.0,56880.0,0.00117252]
[1723755993180,0.002,56881.0,56880.0,0.00017252]
[1723755993380,0.002,56881.0,56880.0,0.00617252]
[1723755993776,0.3628,56881.0,56880.0,0.00617252]
[1723755993992,0.3608,56881.0,56880.0,0.00117252]
[1723755994771,0.3608,56884.0,56880.0,0.00117252]
[1723755994989,0.3608,56884.0,56880.0,0.15117252]
[1723755995674,0.00026295,56886.0,56880.0,0.51197252]
[1723755996078,0.00026295,56886.0,56880.0,0.51397252]
[1723755996274,0.00026295,56886.0,56880.0,0.55790852]
[1723755996676,0.00026295,56886.0,56880.0,0.51697252]
[1723755997079,0.00026295,56886.0,56880.0,1.04437252]
[1723755997287,0.00026295,56886.0,56880.0,0.51697252]
[1723755997481,0.00026295,56886.0,56885.0,0.3608]
[1723755997677,0.00026295,56886.0,56885.0,0.5108]
[1723755998185,0.00026295,56886.0,56885.0,0.15]
[1723755999577,0.00026295,56886.0,56885.0,0.158]
[1723755999777,0.00026295,56886.0,56885.0,0.008]
[1723756000172,0.00026295,56886.0,56885.0,0.015]
[1723756000582,0.92762295,56886.0,56885.0,0.015]
[1723756000778,0.00026295,56886.0,56885.0,0.015]
[1723756001172,0.00026295,56886.0,56885.0,0.175]
[1723756001578,0.00026295,56886.0,56885.0,0.185]
[1723756001777,0.00026295,56886.0,56885.0,0.165]
[1723756001989,0.00026295,56886.0,56885.0,0.015]
[1723756002681,0.52762295,56886.0,56885.0,0.015]
[1723756002878,0.043933,56885.0,56880.0,0.00017252]
[1723756003080,0.3608,56881.0,56880.0,0.00017252]
[1723756004084,0.3608,56881.0,56880.0,0.19617252]
[1723756004784,0.3608,56881.0,56880.0,0.02617252]
[1723756005192,0.36106295,56886.0,56880.0,0.02617252]
[1723756006076,0.36106295,56886.0,56880.0,0.15217252]
[1723756006277,0.001,56881.0,56880.0,0.20010952]
[1723756006677,0.001,56881.0,56880.0,0.19710952]
[1723756007283,0.001,56881.0,56880.0,0.20210952]
[1723756007581,0.00026295,56886.0,56880.0,0.19010952]
[1723756009083,0.00026295,56886.0,56880.0,0.14617252]
[1723756009483,0.00026295,56886.0,56880.0,0.15117252]
[1723756009685,0.00026295,56886.0,56882.0,0.043935]
[1723756009990,0.00026295,56886.0,56883.0,0.043934]
[1723756010215,0.00026295,56886.0,56883.0,0.193934]
[1723756012585,0.00026295,56886.0,56884.0,0.043933]
[1723756012791,0.00026295,56886.0,56884.0,0.193933]
[1723756013396,0.00026295,56886.0,56884.0,0.554733]
[1723756013580,0.06987325,56891.0,56888.0,0.04393]
[1723756013780,0.06987325,56892.0,56888.0,0.15]
[1723756013986,0.06987325,56891.0,56884.0,0.408733]
[1723756014302,0.06987325,56891.0,56885.0,0.043932]
[1723756014480,0.06987325,56891.0,56886.0,0.043931]
[1723756014685,0.3608,56898.0,56886.0,0.043931]
[1723756014686,0.06987325,56892.0,56886.0,0.203931]
[1723756014889,0.07087325,56892.0,56886.0,0.203931]
[1723756015091,0.06987325,56891.0,56888.0,0.004]
[1723756015291,0.001,56892.0,56888.0,0.174]
[1723756016192,0.001,56892.0,56890.0,1.0]
[1723756016382,0.001,56892.0,56890.0,1.17]
[1723756017188,0.06987325,56894.0,56890.0,1.17]
[1723756017492,0.001,56892.0,56890.0,1.17]
[1723756017884,0.001,56892.0,56890.0,1.177]
[1723756018087,0.001,56892.0,56890.0,1.183]
[1723756018796,0.001,56892.0,56890.0,1.18899482]
[1723756018996,0.001,56892.0,56891.0,0.3608]
[1723756019187,0.001,56892.0,56891.0,0.17]
[1723756019498,0.001,56892.0,56890.0,1.01987482]
[1723756019499,0.07087325,56892.0,56890.0,1.01987482]
[1723756019698,0.001,56892.0,56890.0,1.01899482]
[1723756020391,0.56410868,56891.0,56890.0,0.64200078]
[1723756020587,0.74131816,56891.0,56890.0,0.46021697]
[1723756020787,1.26343226,56891.0,56890.0,0.46021697]
[1723756020993,1.39777767,56891.0,56890.0,0.46021697]
[1723756021191,1.263837,56891.0,56890.0,0.46021697]
[1723756021587,1.264837,56891.0,56890.0,0.46621697]
[1723756021789,1.264837,56891.0,56890.0,0.12271697]
[1723756021790,1.14231816,56891.0,56890.0,0.12271697]
[1723756021997,0.043936,56881.0,56880.0,0.00017252]
[1723756022195,0.404736,56881.0,56880.0,0.00017252]
[1723756022390,0.43959584,56881.0,56880.0,0.00017252]
[1723756022786,0.44830048,56881.0,56880.0,0.00017252]
[1723756022994,0.43080735,56881.0,56880.0,0.16017252]
[1723756023294,0.3608,56881.0,56880.0,0.16017252]
[1723756023803,0.07000735,56886.0,56880.0,0.16017252]
[1723756024032,0.44830048,56891.0,56880.0,0.21510952]
[1723756024033,0.001,56881.0,56880.0,0.21510952]
[1723756024498,1e-08,56898.0,56881.0,0.571296]
[1723756024688,0.00152,56899.0,56898.0,0.043923]
[1723756024885,0.404717,56906.0,56898.0,0.21257116]
[1723756025089,0.49221748,56906.0,56898.0,0.16]
[1723756025288,0.404717,56906.0,56898.0,0.16]
[1723756026400,0.043917,56905.0,56898.0,0.15]
[1723756026699,0.043917,56905.0,56898.0,0.15583544]
[1723756027596,0.08750048,56914.0,56904.0,0.3608]
[1723756027788,0.08750048,56918.0,56913.0,0.3608]
[1723756027987,0.3608,56923.0,56913.0,0.3608]
[1723756027988,0.08750048,56921.0,56917.0,0.043908]
[1723756028195,0.3608,56923.0,56918.0,0.404707]
[1723756028395,0.3608,56923.0,56918.0,0.3608]
[1723756028802,0.3608,56923.0,56914.0,0.24608]
[1723756028803,0.043906,56920.0,56914.0,0.24608]
[1723756028999,0.3608,56923.0,56914.0,0.24608]
[1723756029191,0.043907,56919.0,56914.0,0.24608]
[1723756029502,0.3608,56923.0,56914.0,0.24608]
[1723756029987,0.007,56920.0,56914.0,0.001]
[1723756030193,0.043909,56916.0,56914.0,0.001]
[1723756030891,0.043909,56916.0,56914.0,0.00043238]
[1723756031303,0.043909,56916.0,56914.0,0.00143238]
[1723756031692,0.043909,56916.0,56910.0,0.00026373]
[1723756031693,0.043913,56911.0,56910.0,0.00026373]
[1723756031990,0.3608,56911.0,56909.0,0.043914]
[1723756032696,0.008,56920.0,56914.0,0.001]
[1723756032898,0.008,56920.0,56919.0,0.043906]
[1723756033205,0.00026373,56923.0,56921.0,0.043904]
[1723756034505,0.00426373,56923.0,56921.0,0.044904]
[1723756034692,0.00626373,56923.0,56921.0,0.045904]
[1723756035296,0.00626373,56923.0,56921.0,0.002]
[1723756037993,0.00456761,56923.0,56921.0,0.185905]
[1723756038507,0.00456761,56923.0,56922.0,0.043904]
[1723756038806,0.00456761,56923.0,56922.0,0.183904]
[1723756039497,0.002,56923.0,56922.0,0.183904]
[1723756039691,0.009,56923.0,56922.0,0.184904]
[1723756039897,0.009,56923.0,56922.0,0.430904]
[1723756040296,0.009,56923.0,56922.0,0.388]
[1723756040500,0.009,56923.0,56922.0,0.248]
[1723756041596,0.979943,56923.0,56909.0,0.3608]
[1723756041891,0.052903,56923.0,56911.0,0.00611629]
[1723756042097,0.052903,56923.0,56911.0,0.00026373]
[1723756042098,0.3608,56919.0,56911.0,0.00026373]
[1723756042599,0.002,56923.0,56915.0,0.3608]
[1723756042903,0.001,56923.0,56915.0,0.5308]
[1723756043500,0.001,56919.0,56915.0,0.5308]
[1723756044001,0.043907,56918.0,56915.0,0.3608]
[1723756044308,0.043908,56917.0,56915.0,0.3608]
[1723756044697,0.5286,56919.0,56915.0,0.5008]
[1723756044698,0.00152,56919.0,56915.0,0.5008]
[1723756044900,0.043906,56920.0,56915.0,0.5008]
[1723756045106,0.043906,56920.0,56915.0,0.3608]
[1723756045603,0.003,56919.0,56915.0,0.3608]
[1723756045805,0.003,56919.0,56917.0,0.043907]
[1723756046106,0.004,56918.0,56917.0,0.203907]
[1723756046408,0.004,56918.0,56917.0,0.564707]
[1723756046598,0.003,56920.0,56919.0,0.043906]
[1723756046799,0.043897,56932.0,56922.0,0.043904]
[1723756047099,0.043897,56932.0,56922.0,0.203904]
[1723756047303,0.043897,56932.0,56923.0,0.404703]
[1723756047502,0.043897,56932.0,56923.0,0.564703]
[1723756048304,0.043897,56932.0,56923.0,0.57109996]
[1723756049209,0.08726166,56947.0,56931.0,0.3608]
[1723756049412,0.00628042,56954.0,56942.0,0.3608]
[1723756049603,0.043886,56945.0,56938.0,0.3608]
[1723756049805,0.3608,56945.0,56938.0,0.3608]
[1723756050306,0.3608,56945.0,56938.0,0.36712089]
[1723756050708,0.3608,56945.0,56942.0,0.001]
[1723756050935,0.003,56945.0,56942.0,0.001]
[1723756051108,0.003,56945.0,56938.0,0.36812089]
[1723756051414,0.011,56945.0,56940.0,0.04389]
[1723756051609,0.011,56945.0,56941.0,0.043889]
[1723756051804,0.011,56945.0,56944.0,0.3608]
[1723756052004,0.011,56945.0,56938.0,0.37000089]
[1723756052307,0.011,56945.0,56940.0,0.04389]
[1723756052502,0.011,56945.0,56940.0,0.21389]
[1723756052910,0.008,56945.0,56942.0,0.001]
[1723756053406,0.008,56945.0,56940.0,0.001]
[1723756053708,0.008,56945.0,56940.0,0.142]
[1723756054211,0.3608,56941.0,56940.0,0.001]
[1723756054412,0.043889,56941.0,56940.0,0.001]
[1723756054604,0.970769,56941.0,56940.0,0.001]
[1723756054804,0.52688,56941.0,56940.0,0.001]
[1723756055012,0.008,56945.0,56940.0,0.001]
[1723756056211,0.009,56945.0,56940.0,0.002]
[1723756056411,0.043889,56942.0,56940.0,0.002]
[1723756056813,0.570769,56942.0,56940.0,0.002]
[1723756057718,0.570769,56942.0,56940.0,0.001]
[1723756057910,0.580769,56942.0,56940.0,0.002]
[1723756058417,0.043895,56934.0,56932.0,0.246]
[1723756058605,0.043895,56934.0,56927.0,0.00630179]
[1723756058807,0.08726166,56937.0,56933.0,7.978e-05]
[1723756059008,0.15932126,56936.0,56923.0,0.3608]
[1723756059205,0.08730954,56929.0,56928.0,0.043899]
[1723756059405,0.10477145,56932.0,56923.0,0.36723389]
[1723756059618,0.08731217,56928.0,56923.0,0.53723389]
[1723756059811,0.08731217,56928.0,56926.0,0.043901]
[1723756060114,0.08731217,56934.0,56926.0,0.5208]
[1723756060319,0.004,56937.0,56932.0,0.3608]
[1723756060320,0.00026271,56933.0,56932.0,0.3608]
[1723756060515,0.00026271,56933.0,56932.0,0.564696]
[1723756060916,0.00026271,56933.0,56932.0,0.5208]
[1723756061417,0.03607694,56933.0,56932.0,0.5208]
[1723756061616,0.0439,56927.0,56926.0,0.3658]
[1723756061807,0.07949778,56927.0,56926.0,0.3658]
[1723756062206,0.07945442,56927.0,56926.0,0.3658]
[1723756062508,0.03555442,56927.0,56926.0,0.3658]
[1723756062709,0.10481741,56929.0,56926.0,0.3618]
[1723756063317,0.03555442,56928.0,56926.0,0.3618]
[1723756063511,0.10481741,56932.0,56926.0,0.3608]
[1723756063512,0.03554591,56927.0,56926.0,0.3608]
[1723756063713,0.18426032,56932.0,56926.0,0.3608]
[1723756063913,0.03554591,56931.0,56926.0,0.3608]
[1723756064120,0.08739369,56928.0,56927.0,0.3608]
[1723756064312,0.08739369,56928.0,56927.0,0.5108]
[1723756064313,0.08439369,56928.0,56927.0,0.5108]
[1723756064513,0.00026271,56933.0,56927.0,1.4378]
[1723756064514,0.08439369,56931.0,56927.0,1.4378]
[1723756064718,0.10481741,56937.0,56935.0,0.043894]
[1723756064914,0.12251884,56944.0,56936.0,0.3608]
[1723756065119,0.12251884,56944.0,56927.0,0.3608]
[1723756065120,0.043891,56940.0,56932.0,0.043896]
[1723756065317,0.10486786,56935.0,56932.0,0.043896]
[1723756065616,0.03581911,56934.0,56932.0,0.043896]
[1723756065816,0.03581911,56933.0,56932.0,0.043896]
[1723756066018,0.043891,56940.0,56932.0,0.404696]
[1723756066613,0.3608,56945.0,56932.0,0.3608]
[1723756066815,0.001,56937.0,56935.0,0.001]
[1723756067508,0.3608,56945.0,56932.0,0.404696]
[1723756067509,0.047891,56940.0,56932.0,0.4109364]
[1723756067917,0.004,56940.0,56932.0,0.3670404]
[1723756068215,0.3648,56940.0,56932.0,0.3608]
[1723756068417,0.3608,56934.0,56927.0,0.3610635]
[1723756068809,0.043897,56932.0,56927.0,0.4049635]
[1723756069211,0.3608,56934.0,56927.0,0.36723365]
[1723756069421,0.008,56937.0,56927.0,0.53723365]
[1723756069727,0.001,56937.0,56932.0,0.043896]
[1723756069915,0.36820343,56940.0,56932.0,0.043896]
[1723756070118,0.3608,56934.0,56927.0,0.36823365]
[1723756070316,0.043896,56933.0,56927.0,0.36823365]
[1723756070523,0.3608,56934.0,56927.0,0.36823365]
[1723756070524,0.043896,56932.0,56927.0,0.36823365]
[1723756071422,0.3608,56935.0,56927.0,0.36823365]
[1723756072027,0.043896,56932.0,56927.0,0.36823365]
[1723756072217,0.043896,56932.0,56927.0,0.36923365]
[1723756072416,0.043897,56931.0,56927.0,0.36923365]
[1723756072624,0.3608,56935.0,56927.0,0.36923365]
[1723756072917,0.043895,56934.0,56927.0,0.36923365]
[1723756073119,0.3608,56935.0,56927.0,0.36923365]
[1723756073316,0.043899,56929.0,56927.0,0.36923365]
[1723756073815,0.043899,56929.0,56927.0,0.36723365]
[1723756074215,0.043895,56934.0,56927.0,0.36723365]
[1723756074423,0.36711122,56935.0,56927.0,0.36723365]
[1723756074817,0.001,56929.0,56927.0,0.36723365]
[1723756076725,0.001,56929.0,56921.0,0.00020623]
[1723756076726,0.043904,56923.0,56921.0,0.00020623]
[1723756076927,0.043904,56923.0,56921.0,0.00653579]
[1723756077120,0.043904,56923.0,56921.0,0.00020623]
[1723756077630,0.001,56929.0,56921.0,0.00020623]
[1723756077822,0.03512617,56928.0,56925.0,0.3608]
[1723756078332,0.03512617,56927.0,56925.0,0.3608]
[1723756078628,0.0002635,56930.0,56925.0,0.3608]
[1723756078819,0.03510367,56929.0,56925.0,0.3608]
[1723756079224,0.043901,56926.0,56925.0,0.3608]
[1723756079627,0.0002635,56930.0,56927.0,0.0439]
[1723756080129,0.004,56928.0,56927.0,0.0439]
[1723756080426,0.005,56928.0,56927.0,0.0439]
[1723756080933,0.005,56928.0,56925.0,0.3608]
[1723756081318,0.043901,56926.0,56925.0,0.3608]
[1723756081720,0.574901,56926.0,56925.0,0.3608]
[1723756082017,0.047901,56926.0,56925.0,0.3608]
[1723756082232,0.043901,56926.0,56925.0,0.3628]
[1723756082528,0.001,56928.0,56925.0,0.3628]
[1723756083032,0.004,56926.0,56925.0,0.3608]
[1723756083424,0.004,56926.0,56925.0,0.404702]
[1723756084629,0.0002635,56930.0,56925.0,0.404702]
[1723756084828,0.0002635,56930.0,56925.0,0.406702]
[1723756086128,0.07005511,56926.0,56925.0,0.404702]
[1723756086329,0.07005511,56926.0,56925.0,0.406702]
[1723756086722,0.0002635,56930.0,56925.0,0.406702]
[1723756086933,0.07006712,56926.0,56925.0,0.406702]
[1723756087229,0.043899,56929.0,56925.0,0.3628]
[1723756087426,0.0002635,56930.0,56925.0,0.3628]
[1723756087732,0.043901,56927.0,56925.0,0.3608]
[1723756088026,0.043901,56927.0,56925.0,0.3648]
[1723756089622,0.043901,56927.0,56925.0,0.3678]
[1723756089927,0.043901,56926.0,56925.0,0.3658]
[1723756090626,0.043901,56926.0,56925.0,0.3678]
[1723756090827,0.0002635,56930.0,56925.0,0.3678]
[1723756091021,0.0002635,56930.0,56929.0,0.043899]
[1723756092537,0.043889,56941.0,56934.0,0.043895]
[1723756092735,0.043889,56941.0,56940.0,0.3608]
[1723756093034,0.07880066,56941.0,56940.0,0.3608]
[1723756093337,0.60568066,56941.0,56940.0,0.3608]
[1723756093835,0.60668066,56941.0,56940.0,0.3608]
[1723756094329,0.043893,56936.0,56935.0,0.3610635]
[1723756094729,1.00514789,56936.0,56935.0,0.3610635]
[1723756095338,1.00503245,56936.0,56935.0,0.3610635]
[1723756095631,1.00503245,56936.0,56935.0,0.3630635]
[1723756095836,0.3608,56933.0,56909.0,0.00819727]
[1723756096025,0.3608,56910.0,56907.0,0.00642264]
[1723756096228,0.07012015,56908.0,56897.0,0.07009488]
[1723756096539,0.05255708,56901.0,56895.0,0.2175]
[1723756096832,0.05255708,56901.0,56895.0,0.28759488]
[1723756097023,0.05255708,56899.0,56895.0,0.37398081]
[1723756097223,0.00013859,56900.0,56895.0,0.37398081]
[1723756097525,0.0002635,56904.0,56895.0,0.37398081]
[1723756097526,0.0002635,56904.0,56903.0,0.043919]
[1723756098624,0.00133114,56904.0,56903.0,0.050919]
[1723756099624,0.00133114,56904.0,56903.0,0.05731678]
[1723756100132,0.00033114,56904.0,56903.0,0.05031678]
[1723756100331,0.00133114,56904.0,56903.0,0.06431678]
[1723756100727,0.00233114,56904.0,56903.0,0.07131678]
[1723756101534,0.00233114,56904.0,56903.0,0.07031678]
[1723756101920,0.00133114,56904.0,56903.0,0.01739778]
[1723756102228,0.00233114,56904.0,56903.0,0.02839778]
[1723756102735,0.36313114,56904.0,56903.0,0.022]
[1723756102926,0.41568822,56904.0,56903.0,0.022]
[1723756103126,0.36213114,56904.0,56903.0,0.011]
[1723756103323,0.36852979,56904.0,56903.0,0.021]
[1723756103535,0.36852979,56904.0,56903.0,0.019]
[1723756104032,0.40504914,56904.0,56903.0,0.006]
[1723756104233,0.40604914,56904.0,56903.0,0.014]
[1723756104736,0.36113114,56904.0,56903.0,0.009]
[1723756104933,0.36113114,56904.0,56903.0,0.005]
[1723756107031,0.00033114,56904.0,56903.0,0.005]
[1723756107440,0.36113114,56904.0,56903.0,0.005]
[1723756108731,0.41355922,56904.0,56903.0,0.005]
[1723756109433,0.36113114,56904.0,56903.0,0.005]
[1723756110050,0.36795093,56904.0,56903.0,0.005]
[1723756110540,1.66595093,56904.0,56903.0,0.005]
[1723756110737,1.65595093,56904.0,56903.0,0.005]
[1723756110940,1.73585697,56904.0,56903.0,0.005]
[1723756111241,1.65595093,56904.0,56903.0,0.005]
[1723756111829,1.29986893,56904.0,56903.0,0.005]
[1723756112029,1.74378693,56904.0,56903.0,0.005]
[1723756112231,1.41369297,56904.0,56903.0,0.005]
[1723756112430,1.74378693,56904.0,56903.0,0.005]
[1723756113142,0.043926,56893.0,56892.0,0.0002635]
[1723756114336,0.04399364,56893.0,56892.0,0.0002635]
[1723756114532,1.01523964,56893.0,56892.0,0.0002635]
[1723756114847,1.06760621,56893.0,56892.0,0.0042635]
[1723756115035,0.66760621,56893.0,56892.0,0.0042635]
[1723756115236,1.01523964,56893.0,56892.0,0.0042635]
[1723756115434,1.06760621,56893.0,56892.0,0.0042635]
[1723756115636,1.02368021,56893.0,56892.0,0.0042635]
[1723756115836,0.09636021,56893.0,56892.0,0.0042635]
[1723756116041,0.04399364,56893.0,56892.0,0.0072635]
[1723756116742,0.05071709,56893.0,56892.0,0.0072635]
[1723756117747,0.57803709,56893.0,56892.0,0.0072635]
[1723756118041,0.63040366,56893.0,56892.0,0.0072635]
[1723756118246,0.05071709,56893.0,56892.0,0.0072635]
[1723756118747,1.33883709,56893.0,56892.0,0.0072635]
[1723756118942,1.55883709,56893.0,56892.0,0.0072635]
[1723756119146,0.46388366,56893.0,56892.0,0.0072635]
[1723756119337,0.41151709,56893.0,56892.0,0.0072635]
[1723756119737,0.93883709,56893.0,56892.0,0.0072635]
[1723756120137,1.33883709,56893.0,56892.0,0.0072635]
[1723756120849,1.33883709,56893.0,56892.0,5e-07]
[1723756120850,1.58276309,56893.0,56892.0,5e-07]
[1723756121042,1.65258518,56893.0,56892.0,5e-07]
[1723756121239,1.49491109,56893.0,56876.0,0.2184]
[1723756121441,0.404739,56877.0,56876.0,0.2184]
[1723756121754,6.764e-05,56877.0,56876.0,0.26903957]
[1723756122451,6.764e-05,56877.0,56876.0,0.42703957]
[1723756123048,6.764e-05,56877.0,56876.0,0.78783957]
[1723756123247,0.00026373,56882.0,56881.0,0.043936]
[1723756123551,0.36106373,56882.0,56881.0,0.043936]
[1723756124052,0.36106373,56882.0,56881.0,0.213936]
[1723756124264,0.00026373,56882.0,56881.0,0.741336]
[1723756124551,0.41309445,56895.0,56887.0,0.043931]
[1723756124744,0.05229445,56894.0,56887.0,0.043931]
[1723756124943,0.3608,56888.0,56887.0,0.043931]
[1723756125750,0.3608,56888.0,56887.0,0.047931]
[1723756126146,0.05229445,56891.0,56890.0,0.043929]
[1723756126346,0.00026373,56893.0,56892.0,0.043927]